bitfinex/quotes_SOLUSD_20241218
["timestamp","ask_amount","ask_price","bid_price","bid_amount"]
[1734531720932,24.36036361,216.5,216.49,0.5630446]
[1734531722863,38.40395659,216.5,216.49,0.5630446]
[1734531726186,0.58347961,216.5,216.49,0.5630446]
[1734531726470,0.58347961,216.53,216.49,0.5630446]
[1734531727366,0.58347961,216.52,216.49,0.5630446]
[1734531727459,0.58347961,216.54,216.49,0.5630446]
[1734531727640,23.776884,216.53,216.49,14.60663758]
[1734531727955,0.58347961,216.52,216.49,0.5630446]
[1734531729264,0.58347961,216.52,216.5,14.04359298]
[1734531729454,20.0,216.55,216.5,14.04359298]
[1734531729654,0.58347961,216.54,216.5,14.04359298]
[1734531730675,23.776884,216.56,216.52,14.04359298]
[1734531730970,0.58347961,216.55,216.52,14.04359298]
[1734531731167,0.58347961,216.58,216.51,14.04359298]
[1734531731368,0.52803973,216.58,216.51,14.04359298]
[1734531732066,24.30492373,216.58,216.51,14.04359298]
[1734531732865,24.30492373,216.58,216.52,14.04359298]
[1734531733456,24.30492373,216.58,216.51,14.04359298]
[1734531733868,38.34851671,216.58,216.5,14.04359298]
[1734531734068,23.776884,216.56,216.49,14.60663758]
[1734531734384,0.47259985,216.55,216.49,14.60663758]
[1734531734881,0.47259985,216.55,216.5,14.04359298]
[1734531735108,0.47259985,216.55,216.51,14.04359298]
[1734531735269,0.47259985,216.56,216.51,14.04359298]
[1734531735469,0.47259985,216.57,216.51,14.04359298]
[1734531739223,0.47259985,216.57,216.52,14.04359298]
[1734531739712,0.47259985,216.57,216.55,14.04359298]
[1734531739920,0.47259985,216.6,216.56,14.04359298]
[1734531740236,21.15031573,216.7,216.59,9.00366403]
[1734531740237,0.47259985,216.63,216.59,9.00366403]
[1734531740411,0.47259985,216.66,216.61,9.00366403]
[1734531740823,0.47259985,216.67,216.63,9.00366403]
[1734531741127,0.47259985,216.7,216.64,9.00366403]
[1734531741456,0.47259985,216.7,216.65,9.00366403]
[1734531741702,0.47259985,216.71,216.68,9.00366403]
[1734531741892,9.00366403,216.75,216.68,9.00366403]
[1734531742075,9.00366403,216.75,216.68,14.05447302]
[1734531742076,0.47259985,216.74,216.68,14.05447302]
[1734531742276,14.05447302,216.73,216.66,14.05447302]
[1734531742507,0.47259985,216.72,216.66,14.05447302]
[1734531743622,0.47259985,216.71,216.68,14.05447302]
[1734531743825,30.0,216.77,216.7,14.05447302]
[1734531743826,0.47259985,216.74,216.7,14.05447302]
[1734531744044,0.47259985,216.76,216.72,14.05447302]
[1734531744324,0.47259985,216.78,216.72,14.05447302]
[1734531745497,23.776884,216.72,216.67,14.05447302]
[1734531745687,0.47259985,216.71,216.67,14.05447302]
[1734531746830,0.47259985,216.74,216.7,14.05447302]
[1734531746985,0.47259985,216.77,216.7,14.05447302]
[1734531747186,14.52707287,216.79,216.71,14.05447302]
[1734531747604,14.52707287,216.79,216.72,14.05447302]
[1734531747787,14.52707287,216.79,216.63,7.37039046]
[1734531747788,0.47259985,216.79,216.73,14.05447302]
[1734531748515,14.52707287,216.79,216.72,14.05447302]
[1734531748952,23.776884,216.78,216.72,14.05447302]
[1734531749144,0.47259985,216.77,216.72,14.05447302]
[1734531749513,0.47259985,216.77,216.73,14.05447302]
[1734531749713,0.47259985,216.78,216.75,14.05447302]
[1734531749928,0.47259985,216.81,216.75,14.05447302]
[1734531751107,14.05447302,216.79,216.72,14.05447302]
[1734531751313,53.776884,216.8,216.7,1.5866]
[1734531751314,38.30395687,216.78,216.71,14.05447302]
[1734531752334,37.83135702,216.76,216.69,14.05447302]
[1734531752632,23.776884,216.74,216.68,14.05447302]
[1734531752823,0.47259985,216.73,216.68,14.05447302]
[1734531753335,0.47259985,216.73,216.69,14.05447302]
[1734531753825,0.47259985,216.72,216.69,14.05447302]
[1734531754024,0.47259985,216.74,216.69,14.05447302]
[1734531754843,0.47259985,216.74,216.68,14.05447302]
[1734531756953,23.776884,216.71,216.64,15.69727302]
[1734531757154,0.47259985,216.7,216.64,14.05447302]
[1734531757352,0.47259985,216.7,216.67,14.05447302]
[1734531757544,0.47259985,216.73,216.69,14.05447302]
[1734531757740,0.47259985,216.75,216.69,14.05447302]
[1734531757957,24.24948385,216.75,216.68,14.05447302]
[1734531758151,38.30395687,216.75,216.67,14.05447302]
[1734531758356,37.83135702,216.72,216.65,14.05447302]
[1734531758536,0.47259985,216.71,216.66,14.05447302]
[1734531760674,0.47259985,216.71,216.67,14.05447302]
[1734531761358,0.47259985,216.7,216.67,14.05447302]
[1734531761542,0.47259985,216.72,216.67,14.05447302]
[1734531761742,0.47259985,216.72,216.66,14.05447302]
[1734531761946,0.47259985,216.72,216.65,8.99713978]
[1734531762278,23.776884,216.7,216.63,8.99713978]
[1734531762555,0.47259985,216.69,216.64,8.99713978]
[1734531762757,0.47259985,216.69,216.65,8.99713978]
[1734531763557,0.47259985,216.68,216.65,8.99713978]
[1734531763754,0.47259985,216.7,216.65,8.99713978]
[1734531764171,0.47259985,216.7,216.67,8.99713978]
[1734531764371,0.47259985,216.7,216.66,8.99713978]
[1734531764671,0.47259985,216.69,216.66,8.99713978]
[1734531764867,0.47259985,216.71,216.66,8.99713978]
[1734531765472,0.47259985,216.71,216.67,8.99713978]
[1734531765858,0.47259985,216.7,216.67,8.99713978]
[1734531766069,0.47259985,216.69,216.65,8.99713978]
[1734531766277,38.99713978,216.71,216.64,8.99713978]
[1734531766450,24.24948385,216.7,216.64,8.99713978]
[1734531767243,0.47259985,216.7,216.65,8.99713978]
[1734531767470,23.776884,216.72,216.66,8.99713978]
[1734531767666,0.47259985,216.71,216.68,8.99713978]
[1734531767871,9.46973963,216.76,216.68,8.99713978]
[1734531768165,0.47259985,216.76,216.69,8.99713978]
[1734531768366,0.47259985,216.76,216.7,8.99713978]
[1734531768565,8.99713978,216.74,216.62,20.0]
[1734531768742,0.47259985,216.76,216.62,20.0]
[1734531768743,0.47259985,216.73,216.68,8.99713978]
[1734531768943,0.47259985,216.73,216.62,20.1]
[1734531769197,9.46973963,216.75,216.62,20.1]
[1734531769472,9.46973963,216.75,216.68,8.99713978]
[1734531769665,23.776884,216.74,216.68,8.99713978]
[1734531769864,0.47259985,216.73,216.68,8.99713978]
[1734531772368,0.47259985,216.72,216.67,8.99713978]
[1734531772572,0.47259985,216.73,216.67,8.99713978]
[1734531773561,0.47259985,216.74,216.69,8.99713978]
[1734531774682,0.47259985,216.74,216.7,8.99713978]
[1734531774863,0.47259985,216.79,216.73,8.99713978]
[1734531775078,0.47259985,216.8,216.76,8.99713978]
[1734531775393,9.46973963,216.82,216.75,8.99713978]
[1734531776370,9.46973963,216.82,216.73,8.99713978]
[1734531776371,28.99713978,216.8,216.73,8.99713978]
[1734531776569,0.47259985,216.79,216.73,8.99713978]
[1734531777986,0.47259985,216.79,216.74,8.99713978]
[1734531778287,0.47259985,216.79,216.73,8.99713978]
[1734531780883,0.47259985,216.79,216.74,8.99713978]
[1734531781206,33.24662363,216.79,216.72,8.99713978]
[1734531781884,24.24948385,216.79,216.73,8.99713978]
[1734531782484,8.99713978,216.78,216.71,8.99713978]
[1734531782693,24.24948385,216.77,216.71,8.99713978]
[1734531783287,33.24662363,216.77,216.7,8.99713978]
[1734531783584,23.776884,216.76,216.7,8.99713978]
[1734531783842,0.47259985,216.75,216.7,8.99713978]
[1734531783967,0.47259985,216.75,216.63,2.63758078]
[1734531783968,8.99713978,216.73,216.63,1.6639]
[1734531784166,0.47259985,216.72,216.66,8.99713978]
[1734531784689,53.776884,216.76,216.63,1.6639]
[1734531784690,0.47259985,216.75,216.71,8.99713978]
[1734531785157,0.47259985,216.75,216.72,8.99713978]
[1734531785588,0.47259985,216.75,216.71,8.99713978]
[1734531785793,0.47259985,216.75,216.7,8.99713978]
[1734531786085,0.47259985,216.74,216.7,8.99713978]
[1734531786286,0.47259985,216.76,216.7,8.99713978]
[1734531786487,30.47259985,216.76,216.7,8.99713978]
[1734531786722,32.77402378,216.75,216.68,8.99713978]
[1734531786896,9.46973963,216.74,216.67,8.99713978]
[1734531787092,23.776884,216.73,216.67,8.99713978]
[1734531787301,0.47259985,216.72,216.67,8.99713978]
[1734531787471,0.47259985,216.72,216.68,8.99713978]
[1734531787870,0.47259985,216.73,216.68,8.99713978]
[1734531788468,0.47259985,216.73,216.64,20.0]
[1734531788677,23.776884,216.7,216.63,10.56103978]
[1734531788879,0.47259985,216.69,216.63,10.56103978]
[1734531789268,0.47259985,216.69,216.64,8.99713978]
[1734531789991,0.47259985,216.69,216.6,0.1]
[1734531790196,23.776884,216.67,216.6,0.1]
[1734531790493,0.47259985,216.66,216.6,8.99713978]
[1734531790713,0.47259985,216.66,216.57,1.6088]
[1734531790714,0.47259985,216.66,216.61,8.99713978]
[1734531791475,0.47259985,216.66,216.57,1.6088]
[1734531791695,0.47259985,216.66,216.61,8.99713978]
[1734531792594,23.776884,216.67,216.57,1.6088]
[1734531792595,0.47259985,216.67,216.64,8.99713978]
[1734531792802,0.47259985,216.67,216.65,8.99713978]
[1734531792971,24.24948385,216.7,216.65,8.99713978]
[1734531793996,24.24948385,216.7,216.64,8.99713978]
[1734531794627,0.47259985,216.7,216.66,8.99713978]
[1734531794914,0.47259985,216.73,216.69,8.99713978]
[1734531795222,0.47259985,216.76,216.72,8.99713978]
[1734531795418,9.46973963,216.76,216.69,8.99713978]
[1734531796505,8.99713978,216.75,216.66,1.7427]
[1734531796696,24.24948385,216.74,216.67,8.99713978]
[1734531797503,24.24948385,216.74,216.68,8.99713978]
[1734531797702,0.47259985,216.74,216.69,8.99713978]
[1734531797900,0.47259985,216.75,216.72,8.99713978]
[1734531798219,0.47259985,216.74,216.7,8.99713978]
[1734531798400,0.47259985,216.76,216.7,8.99713978]
[1734531799089,24.24948385,216.76,216.7,8.99713978]
[1734531799289,8.99713978,216.75,216.68,8.99713978]
[1734531799489,24.24948385,216.74,216.68,8.99713978]
[1734531799714,24.24948385,216.74,216.69,8.99713978]
[1734531799922,0.47259985,216.74,216.69,8.99713978]
[1734531800299,23.776884,216.73,216.68,8.99713978]
[1734531800504,0.47259985,216.72,216.68,8.99713978]
[1734531800822,0.47259985,216.72,216.7,8.99713978]
[1734531801100,0.47259985,216.76,216.71,8.99713978]
[1734531801325,20.47259985,216.76,216.71,8.99713978]
[1734531803711,20.47259985,216.76,216.7,8.99713978]
[1734531803923,23.776884,216.75,216.69,8.99713978]
[1734531804115,9.46973963,216.74,216.66,10.73983978]
[1734531804609,23.776884,216.73,216.67,8.99713978]
[1734531804933,0.47259985,216.72,216.67,8.99713978]
[1734531805518,0.47259985,216.72,216.66,1.7427]
[1734531805727,0.47259985,216.71,216.64,8.99713978]
[1734531805940,24.24948385,216.71,216.61,1.5927]
[1734531806109,38.99713978,216.7,216.62,8.99713978]
[1734531806425,38.99713978,216.7,216.59,6.6214]
[1734531806426,23.776884,216.67,216.59,6.5214]
[1734531806727,0.47259985,216.66,216.59,8.99713978]
[1734531808702,0.47259985,216.66,216.6,8.99713978]
[1734531808928,0.47259985,216.66,216.59,8.99713978]
[1734531809161,23.776884,216.65,216.58,8.99713978]
[1734531809359,0.47259985,216.64,216.59,8.99713978]
[1734531809874,0.47259985,216.64,216.61,8.99713978]
[1734531810064,0.47259985,216.65,216.61,8.99713978]
[1734531810256,0.47259985,216.66,216.64,8.99713978]
[1734531810446,0.47259985,216.69,216.63,8.99713978]
[1734531811041,0.47259985,216.69,216.62,8.99713978]
[1734531811236,0.47259985,216.69,216.56,1.6683]
[1734531811237,0.47259985,216.69,216.63,8.99713978]
[1734531811451,0.47259985,216.69,216.64,8.99713978]
[1734531811765,0.47259985,216.69,216.66,8.99713978]
[1734531812062,0.47259985,216.72,216.66,8.99713978]
[1734531812463,9.46973963,216.72,216.64,8.99713978]
[1734531812683,32.77402378,216.71,216.64,8.99713978]
[1734531812864,0.47259985,216.7,216.64,8.99713978]
[1734531814744,9.46973963,216.7,216.63,8.99713978]
[1734531814945,0.47259985,216.7,216.64,8.99713978]
[1734531815146,0.47259985,216.7,216.66,8.99713978]
[1734531815346,0.47259985,216.7,216.65,8.99713978]
[1734531815604,0.47259985,216.69,216.64,8.99713978]
[1734531815746,0.47259985,216.71,216.64,8.99713978]
[1734531816062,0.47259985,216.71,216.65,8.99713978]
[1734531822485,0.47259985,216.71,216.66,8.99713978]
[1734531822979,0.47259985,216.71,216.65,8.99713978]
[1734531823784,0.47259985,216.71,216.6,20.0]
[1734531824107,23.776884,216.69,216.62,8.99713978]
[1734531824276,0.47259985,216.68,216.62,8.99713978]
[1734531827428,0.47259985,216.67,216.62,8.99713978]
[1734531827586,0.47259985,216.69,216.62,8.99713978]
[1734531831397,0.47259985,216.69,216.63,8.99713978]
[1734531831603,0.47259985,216.72,216.68,8.99713978]
[1734531831776,0.47259985,216.75,216.71,8.99713978]
[1734531832088,0.47259985,216.77,216.71,8.99713978]
[1734531833096,24.24948385,216.77,216.71,8.99713978]
[1734531833396,33.24662363,216.77,216.67,1.5759]
[1734531833693,8.99713978,216.76,216.69,8.99713978]
[1734531833989,0.47259985,216.75,216.7,8.99713978]
[1734531835063,0.47259985,216.78,216.74,8.99713978]
[1734531835288,0.47259985,216.81,216.76,8.99713978]
[1734531836109,0.47259985,216.82,216.76,8.99713978]
[1734531836315,9.46973963,216.84,216.76,8.99713978]
[1734531836488,8.99713978,216.83,216.76,8.99713978]
[1734531836674,0.47259985,216.82,216.76,8.99713978]
[1734531837478,62.77402378,216.81,216.72,6.6388]
[1734531837676,8.99713978,216.79,216.72,6.6388]
[1734531837878,0.47259985,216.78,216.72,15.63593978]
[1734531838102,0.47259985,216.78,216.73,8.99713978]
[1734531838870,0.47259985,216.77,216.73,8.99713978]
[1734531839076,0.47259985,216.79,216.73,8.99713978]
[1734531839282,9.46973963,216.79,216.72,15.63593978]
[1734531839691,0.47259985,216.79,216.72,15.63593978]
[1734531840093,9.46973963,216.79,216.72,8.99713978]
[1734531840314,30.0,216.78,216.7,8.99713978]
[1734531840606,33.24662363,216.77,216.67,8.1061]
[1734531840777,8.99713978,216.74,216.67,1.5759]
[1734531840967,9.46973963,216.73,216.67,1.5759]
[1734531841276,0.47259985,216.73,216.67,10.57303978]
[1734531842595,8.99713978,216.7,216.63,9.09713978]
[1734531842774,0.47259985,216.69,216.63,8.99713978]
[1734531842979,0.47259985,216.69,216.64,8.99713978]
[1734531843772,0.47259985,216.7,216.66,8.99713978]
[1734531844018,0.47259985,216.72,216.67,8.99713978]
[1734531844973,0.47259985,216.74,216.71,8.99713978]
[1734531845186,31.5188,216.8,216.71,8.99713978]
[1734531845187,8.99713978,216.78,216.71,8.99713978]
[1734531845395,0.47259985,216.77,216.71,8.99713978]
[1734531845598,0.47259985,216.77,216.66,6.6443]
[1734531845777,9.46973963,216.77,216.7,8.99713978]
[1734531846177,14.52481246,216.77,216.7,14.05221261]
[1734531846477,23.776884,216.76,216.7,14.05221261]
[1734531846677,37.82909661,216.74,216.67,14.05221261]
[1734531846892,0.47259985,216.73,216.67,14.05221261]
[1734531847095,0.47259985,216.73,216.68,14.05221261]
[1734531847406,0.47259985,216.73,216.69,14.05221261]
[1734531848006,0.47259985,216.73,216.68,14.05221261]
[1734531848989,30.0,216.72,216.65,14.05221261]
[1734531849173,38.30169646,216.71,216.64,14.05221261]
[1734531849513,38.30169646,216.71,216.63,14.05221261]
[1734531849874,14.05221261,216.7,216.62,15.64301261]
[1734531850073,37.82909661,216.68,216.61,14.05221261]
[1734531850311,0.47259985,216.67,216.6,14.05221261]
[1734531851314,14.52481246,216.67,216.6,14.05221261]
[1734531851497,23.776884,216.66,216.59,14.05221261]
[1734531851697,23.776884,216.66,216.6,14.05221261]
[1734531851698,0.47259985,216.65,216.6,14.05221261]
[1734531852215,0.47259985,216.65,216.59,14.05221261]
[1734531852610,0.47259985,216.64,216.59,14.05221261]
[1734531852913,0.47259985,216.66,216.61,14.05221261]
[1734531853360,0.47259985,216.67,216.61,14.05221261]
[1734531854221,0.47259985,216.67,216.6,14.05221261]
[1734531854792,14.52481246,216.67,216.6,14.05221261]
[1734531856412,23.776884,216.66,216.58,14.05221261]
[1734531856604,23.776884,216.64,216.58,14.05221261]
[1734531856808,0.47259985,216.63,216.58,14.05221261]
[1734531857518,14.05221261,216.62,216.55,14.05221261]
[1734531857717,0.47259985,216.61,216.55,14.05221261]
[1734531858388,24.24948385,216.61,216.55,14.05221261]
[1734531858590,0.47259985,216.61,216.56,14.05221261]
[1734531859002,0.47259985,216.6,216.56,14.05221261]
[1734531859201,0.47259985,216.63,216.59,14.05221261]
[1734531859593,0.47259985,216.63,216.58,14.05221261]
[1734531860412,0.47259985,216.62,216.58,14.05221261]
[1734531860618,37.82909661,216.65,216.58,14.05221261]
[1734531860619,0.47259985,216.64,216.58,14.05221261]
[1734531862132,14.52481246,216.64,216.57,14.05221261]
[1734531862305,23.776884,216.61,216.54,14.05221261]
[1734531862650,0.47259985,216.6,216.56,14.05221261]
[1734531863300,24.24948385,216.62,216.56,14.05221261]
[1734531863729,0.47259985,216.62,216.56,14.05221261]
[1734531863897,0.47259985,216.62,216.57,14.05221261]
[1734531864299,0.47259985,216.62,216.56,14.05221261]
[1734531864524,0.47259985,216.61,216.57,14.05221261]
[1734531864830,0.47259985,216.63,216.58,14.05221261]
[1734531864996,0.47259985,216.64,216.58,14.05221261]
[1734531865621,0.47259985,216.64,216.57,14.05221261]
[1734531866043,37.82909661,216.63,216.56,14.05221261]
[1734531866261,0.47259985,216.62,216.56,14.05221261]
[1734531866566,24.24948385,216.62,216.56,14.05221261]
[1734531866727,24.24948385,216.62,216.55,14.05221261]
[1734531866928,23.776884,216.6,216.53,14.05221261]
[1734531867132,0.47259985,216.59,216.52,14.05221261]
[1734531867950,14.52481246,216.59,216.52,14.05221261]
[1734531868245,23.776884,216.57,216.5,14.05221261]
[1734531868536,0.47259985,216.56,216.49,9.5728911]
[1734531870149,32.7867305,216.54,216.49,0.5630446]
[1734531870309,0.47259985,216.53,216.49,0.5630446]
[1734531870519,23.776884,216.52,216.49,0.5630446]
[1734531870725,23.776884,216.5,216.49,0.5630446]
[1734531870956,37.85893292,216.5,216.49,0.5630446]
[1734531872723,73.776884,216.48,216.47,4.46e-05]
[1734531872922,102.41358169,216.48,216.47,4.46e-05]
[1734531873125,87.85893292,216.48,216.47,4.46e-05]
[1734531873527,88.44244064,216.48,216.47,4.46e-05]
[1734531873839,23.776884,216.48,216.47,4.46e-05]
[1734531874143,14.66555664,216.5,216.47,4.46e-05]
[1734531874837,14.08204892,216.49,216.47,4.46e-05]
[1734531875036,0.58350772,216.48,216.47,4.46e-05]
[1734531875605,24.36039172,216.48,216.47,4.46e-05]
[1734531878811,38.44244064,216.48,216.47,4.46e-05]
[1734531879733,82.52448956,216.48,216.47,4.46e-05]
[1734531880040,68.44244064,216.48,216.47,4.46e-05]
[1734531880720,38.44244064,216.48,216.47,4.46e-05]
[1734531880933,24.36039172,216.48,216.47,4.46e-05]
[1734531883050,68.44244064,216.48,216.47,4.46e-05]
[1734531885942,82.52448956,216.48,216.47,4.46e-05]
[1734531886145,84.11468956,216.48,216.47,4.46e-05]
[1734531886515,111.85468956,216.48,216.47,4.46e-05]
[1734531886716,111.27118184,216.48,216.47,4.46e-05]
[1734531888437,130.48283145,216.48,216.47,4.46e-05]
[1734531888634,30.0,216.39,216.31,1.6145]
[1734531888847,38.44244064,216.38,216.31,1.6145]
[1734531889343,37.85893292,216.36,216.31,1.6145]
[1734531889527,0.58350772,216.35,216.31,1.6145]
[1734531889727,0.58350772,216.35,216.31,1.10529232]
[1734531890641,0.58350772,216.36,216.31,1.10529232]
[1734531891117,14.08204892,216.35,216.31,1.10529232]
[1734531891319,0.58350772,216.34,216.31,1.10529232]
[1734531891621,24.36039172,216.36,216.31,1.10529232]
[1734531891822,24.36039172,216.36,216.31,15.18734124]
[1734531891823,0.58350772,216.36,216.31,15.18734124]
[1734531892058,0.58350772,216.36,216.32,14.08204892]
[1734531892347,24.36039172,216.38,216.32,14.08204892]
[1734531892558,0.58350772,216.38,216.33,14.08204892]
[1734531892918,0.58350772,216.38,216.32,14.08204892]
[1734531893118,14.66555664,216.38,216.31,15.18734124]
[1734531894951,0.58350772,216.38,216.32,14.08204892]
[1734531900352,0.58350772,216.39,216.36,14.08204892]
[1734531900562,0.58350772,216.41,216.36,14.08204892]
[1734531900851,14.08204892,216.42,216.35,14.08204892]
[1734531901053,0.58350772,216.41,216.35,14.08204892]
[1734531901836,0.58350772,216.41,216.34,14.08204892]
[1734531902028,0.58350772,216.41,216.35,14.08204892]
[1734531902350,0.58350772,216.41,216.31,1.20529232]
[1734531902521,0.58350772,216.41,216.35,14.08204892]
[1734531902946,0.58350772,216.41,216.31,1.10529232]
[1734531902947,23.776884,216.37,216.31,1.10529232]
[1734531903262,0.58350772,216.36,216.29,14.08204892]
[1734531903566,0.58350772,216.38,216.34,14.08204892]
[1734531903862,0.58350772,216.4,216.3,8.0335]
[1734531904070,14.66555664,216.44,216.37,14.08204892]
[1734531904240,0.58350772,216.44,216.38,14.08204892]
[1734531904447,0.58350772,216.44,216.4,14.08204892]
[1734531904647,0.58350772,216.46,216.4,14.08204892]
[1734531904847,14.66555664,216.46,216.39,14.08204892]
[1734531906370,0.58350772,216.46,216.4,14.08204892]
[1734531906851,14.66555664,216.46,216.39,14.08204892]
[1734531907866,14.08204892,216.45,216.38,14.08204892]
[1734531908071,9.60389364,216.44,216.37,9.02038592]
[1734531908246,9.02038592,216.43,216.36,9.02038592]
[1734531908449,0.58350772,216.42,216.36,9.02038592]
[1734531909054,0.58350772,216.42,216.37,9.02038592]
[1734531909256,0.58350772,216.42,216.36,9.02038592]
[1734531909456,9.02038592,216.39,216.3,8.0335]
[1734531909669,0.58350772,216.38,216.32,9.02038592]
[1734531909854,0.58350772,216.38,216.33,9.02038592]
[1734531910371,0.58350772,216.38,216.33,14.09984988]
[1734531910575,24.36039172,216.39,216.33,14.09984988]
[1734531910976,0.58350772,216.39,216.34,14.09984988]
[1734531911568,0.58350772,216.4,216.34,14.09984988]
[1734531911777,0.58350772,216.4,216.33,14.09984988]
[1734531912849,14.6833576,216.4,216.33,14.09984988]
[1734531913175,30.0,216.38,216.31,14.09984988]
[1734531913385,24.36039172,216.37,216.31,14.09984988]
[1734531914760,38.4602416,216.37,216.3,15.71074988]
[1734531915101,14.09984988,216.33,216.28,0.5630446]
[1734531915248,30.0,216.35,216.28,0.5630446]
[1734531915249,0.58350772,216.32,216.28,14.66289448]
[1734531915448,44.09984988,216.35,216.28,14.66289448]
[1734531915449,24.36039172,216.34,216.28,14.66289448]
[1734531916153,24.36039172,216.34,216.29,14.09984988]
[1734531916373,24.36039172,216.34,216.28,14.66289448]
[1734531916568,14.09984988,216.32,216.28,0.5630446]
[1734531916774,0.58350772,216.31,216.28,0.5630446]
[1734531917786,23.776884,216.32,216.28,0.5630446]
[1734531918079,0.58350772,216.31,216.28,0.5630446]
[1734531919159,37.87673388,216.3,216.28,0.5630446]
[1734531919396,38.4602416,216.29,216.28,0.5630446]
[1734531920547,0.58350772,216.29,216.28,0.5630446]
[1734531920771,0.58350772,216.3,216.28,0.5630446]
[1734531923879,24.36039172,216.33,216.28,0.5630446]
[1734531926161,0.58350772,216.33,216.28,0.5630446]
[1734531926365,0.58350772,216.34,216.28,0.5630446]
[1734531927674,67.87673388,216.33,216.28,0.5630446]
[1734531927973,23.776884,216.31,216.28,0.5630446]
[1734531928175,0.58350772,216.3,216.28,0.5630446]
[1734531928780,23.776884,216.29,216.28,0.5630446]
[1734531929164,37.87673388,216.29,216.28,0.5630446]
[1734531932085,32.81168081,216.29,216.28,0.5630446]
[1734531932871,32.81168081,216.29,216.28,4.46e-05]
[1734531933085,36.17911158,216.29,216.28,4.46e-05]
[1734531934570,30.58350772,216.3,216.28,4.46e-05]
[1734531934785,9.03479681,216.29,216.28,4.46e-05]
[1734531935395,39.61830453,216.3,216.28,4.46e-05]
[1734531935577,39.56266217,216.3,216.28,4.46e-05]
[1734531935897,9.03479681,216.29,216.28,4.46e-05]
[1734531936079,14.11356378,216.29,216.28,4.46e-05]
[1734531937100,37.89044778,216.29,216.28,4.46e-05]
[1734531937928,14.11356378,216.29,216.28,4.46e-05]
[1734531938079,37.89044778,216.29,216.28,4.46e-05]
[1734531943596,65.63044778,216.29,216.28,4.46e-05]
[1734531944972,66.15831314,216.29,216.28,4.46e-05]
[1734531946200,38.41831314,216.29,216.28,4.46e-05]
[1734531949807,0.52786536,216.29,216.28,4.46e-05]
[1734531950494,0.52786536,216.31,216.28,4.46e-05]
[1734531951395,0.52786536,216.32,216.28,4.46e-05]
[1734531951986,14.64142914,216.32,216.28,4.46e-05]
[1734531953306,14.11356378,216.31,216.28,4.46e-05]
[1734531953503,0.52786536,216.3,216.28,4.46e-05]
[1734531955088,14.64142914,216.3,216.28,4.46e-05]
[1734531955406,0.52786536,216.3,216.28,4.46e-05]
[1734531958696,9.55929417,216.3,216.28,4.46e-05]
[1734531962495,39.55929417,216.3,216.28,4.46e-05]
[1734531962693,30.52786536,216.3,216.28,4.46e-05]
[1734531962904,0.52786536,216.3,216.28,4.46e-05]
[1734531963107,0.52786536,216.32,216.28,4.46e-05]
[1734531963301,62.80831281,216.29,216.28,4.46e-05]
[1734531963618,63.33617817,216.29,216.28,4.46e-05]
[1734531971815,91.07617817,216.29,216.28,4.46e-05]
[1734531976990,63.33617817,216.29,216.28,4.46e-05]
[1734531977520,39.55929417,216.29,216.28,4.46e-05]
[1734531977893,30.0,216.29,216.28,4.46e-05]
[1734531978403,30.52786536,216.29,216.28,4.46e-05]
[1734531979518,39.55929417,216.29,216.28,4.46e-05]
[1734531990335,63.33617817,216.29,216.28,4.46e-05]
[1734531996810,30.52786536,216.29,216.28,4.46e-05]
[1734531997141,16.66601692,216.33,216.28,4.46e-05]
[1734531997321,7.63458811,216.33,216.28,4.46e-05]
[1734531997669,0.52786536,216.33,216.28,4.46e-05]
[1734531997953,9.03142881,216.3,216.28,4.46e-05]
[1734531998158,9.55929417,216.29,216.28,4.46e-05]
[1734531999041,0.52786536,216.29,216.28,4.46e-05]
[1734531999413,9.55929417,216.29,216.28,4.46e-05]
[1734532000046,0.52786536,216.29,216.28,4.46e-05]
[1734532000227,9.03142881,216.3,216.28,4.46e-05]
[1734532000419,0.52786536,216.29,216.28,4.46e-05]
[1734532001031,9.03142881,216.31,216.28,4.46e-05]
[1734532001231,0.52786536,216.3,216.28,4.46e-05]
[1734532001918,9.55929417,216.3,216.28,4.46e-05]
[1734532002154,0.52786536,216.3,216.28,4.46e-05]
[1734532003129,9.55929417,216.32,216.28,4.46e-05]
[1734532003332,9.03142881,216.31,216.28,4.46e-05]
[1734532003643,0.52786536,216.3,216.28,4.46e-05]
[1734532004443,0.52786536,216.31,216.28,4.46e-05]
[1734532006468,9.03142881,216.29,216.28,4.46e-05]
[1734532007130,9.55929417,216.29,216.28,4.46e-05]
[1734532008450,0.52786536,216.29,216.28,4.46e-05]
[1734532008865,30.0,216.33,216.28,4.46e-05]
[1734532009024,9.55929417,216.32,216.28,4.46e-05]
[1734532011156,0.52786536,216.32,216.28,4.46e-05]
[1734532012751,9.55929417,216.32,216.28,4.46e-05]
[1734532012969,0.52786536,216.35,216.28,10.54957341]
[1734532013174,9.55929417,216.35,216.28,10.54957341]
[1734532013958,9.03142881,216.34,216.28,1.5181446]
[1734532014160,0.52786536,216.33,216.28,1.5181446]
[1734532015759,9.55929417,216.33,216.28,1.5181446]
[1734532016259,0.52786536,216.33,216.28,1.5181446]
[1734532016948,9.55929417,216.33,216.28,1.5181446]
[1734532022143,0.52786536,216.35,216.29,9.03142881]
[1734532022351,0.52786536,216.38,216.32,9.03142881]
[1734532022863,0.52786536,216.38,216.29,0.6934109]
[1734532022864,9.03142881,216.4,216.33,9.03142881]